bitfinex-derivatives/quotes_SOLF0:USTF0_20260102
["timestamp","ask_amount","ask_price","bid_price","bid_amount"]
[1767391513213,89.0,133.12,133.03,105.3470439]
[1767391513411,4.20018448,133.2,133.03,105.2941]
[1767391513412,4.20018448,133.13,133.03,105.2941]
[1767391513719,4.20018448,133.15,133.01,112.079]
[1767391513915,109.40568448,133.15,133.01,105.3093]
[1767391514329,0.05219108,133.09,133.0,194.2993]
[1767391514515,105.2234,133.13,133.0,194.2993]
[1767391514714,105.2234,133.13,133.0,88.98]
[1767391514912,105.2312,133.12,133.0,88.98]
[1767391515122,105.2848,133.05,132.92,122.83288687]
[1767391515318,4.20018448,133.0,132.97,0.05118459]
[1767391515533,105.3313,132.99,132.92,17.45358687]
[1767391515829,110.34738587,132.97,132.83,105.4513]
[1767391516024,0.79970139,132.97,132.86,105.4259]
[1767391516218,105.318,133.01,132.86,105.4259]
[1767391516219,88.94,132.99,132.86,105.4259]
[1767391516421,0.05422992,132.94,132.91,0.05009101]
[1767391516628,88.94,132.98,132.91,0.0474544]
[1767391516831,0.79970139,132.99,132.87,105.4211]
[1767391517033,0.79970139,133.03,132.89,105.4041]
[1767391517331,0.79970139,133.07,132.93,105.3686]
[1767391517834,0.04826665,133.01,132.93,105.3737]
[1767391518022,88.94,133.06,132.93,105.3737]
[1767391518225,0.79970139,133.04,132.91,105.3894]
[1767391518425,88.94,133.03,132.92,105.3814]
[1767391518622,0.79970139,133.01,132.88,105.4123]
[1767391518832,0.79970139,133.01,132.93,0.05755236]
[1767391518833,0.05389966,132.96,132.93,0.05755236]
[1767391519017,0.05389966,132.96,132.93,0.05619657]
[1767391519431,0.79970139,133.05,132.94,105.3622]
[1767391520133,0.79970139,133.05,132.93,112.1442]
[1767391520337,0.79970139,133.02,132.89,105.403]
[1767391520539,89.71970139,133.02,132.9,210.7946]
[1767391520830,0.79970139,132.99,132.87,105.4221]
[1767391521131,106.13340139,132.99,132.86,105.4307]
[1767391521327,88.92,132.98,132.87,105.4207]
[1767391521526,0.04844665,132.94,132.91,0.05207513]
[1767391522619,0.04844665,132.94,132.88,105.4126]
[1767391522931,0.79970139,133.03,132.9,105.396]
[1767391523129,0.79970139,133.03,132.91,105.3884]
[1767391523433,0.79970139,133.03,132.92,105.3812]
[1767391523633,0.05620377,132.98,132.96,0.0512515]
[1767391523837,106.07020139,133.07,132.96,0.0512515]
[1767391524029,0.79970139,133.07,132.95,105.3571]
[1767391524536,105.2309,133.12,132.95,105.3571]
[1767391524537,0.79970139,133.11,132.98,105.3321]
[1767391524721,88.9,133.1,132.98,105.3321]
[1767391525031,0.05475575,133.05,133.03,0.04766886]
[1767391525239,0.79970139,133.11,133.0,105.3174]
[1767391525431,88.9,133.12,133.01,105.3104]
[1767391525735,0.79970139,133.14,133.01,105.3104]
[1767391526030,258.85918874,133.69,133.01,105.3104]
[1767391526031,0.79970139,133.2,133.08,105.2543]
[1767391526238,0.79970139,133.24,133.11,105.2309]
[1767391526434,0.05281112,133.19,133.16,0.05372155]
[1767391526629,0.05281112,133.19,133.16,0.05308712]
[1767391526826,0.05281112,133.19,133.1,105.2377]
[1767391527028,0.79970139,133.23,133.11,105.2311]
[1767391527234,0.79970139,133.21,133.09,88.9]
[1767391527744,0.30782156,133.26,133.14,105.2059]
[1767391527923,0.30782156,133.26,133.19,0.0505084]
[1767391527924,0.05601617,133.21,133.19,0.0505084]
[1767391528122,0.05727358,133.21,133.19,0.0505084]
[1767391528338,0.30782156,133.26,133.19,0.0505084]
[1767391528836,105.1518,133.22,133.08,194.1345]
[1767391529136,105.45962156,133.22,133.09,105.249]
[1767391529322,7.06762156,133.22,133.09,112.0145]
[1767391529530,0.30782156,133.22,133.12,105.2224]
[1767391529832,0.30680759,133.26,133.16,0.05344708]
[1767391530130,105.45740759,133.22,133.08,194.116]
[1767391530335,105.45740759,133.22,133.04,105.2859]
[1767391530336,0.30680759,133.18,133.04,105.2859]
[1767391530533,0.30680759,133.17,133.04,200.8941]
[1767391530739,88.84,133.16,133.04,194.1259]
[1767391531033,0.05510011,133.11,133.09,0.05410227]
[1767391531238,0.0573102,133.11,133.09,0.05410227]
[1767391531733,0.0573102,133.11,133.02,105.3001]
[1767391531940,0.30680759,133.14,133.02,105.3001]
[1767391532239,0.30680759,133.19,133.06,105.27]
[1767391532436,88.82,133.16,133.06,105.27]
[1767391532635,0.05720069,133.12,133.1,0.05621727]
[1767391533041,0.30680759,133.19,133.1,0.05621727]
[1767391533239,88.82,133.18,133.09,105.2456]
[1767391533432,88.82,133.18,133.08,6.7661]
[1767391533735,88.82,133.18,133.04,128.0044]
[1767391533736,0.30680759,133.17,133.04,128.0044]
[1767391534141,0.0540237,133.12,133.1,0.05103632]
[1767391534441,0.30680759,133.21,133.1,0.05103632]
[1767391534750,88.82,133.2,133.09,6.7659]
[1767391535040,88.82,133.2,133.09,112.014]
[1767391535233,0.30680759,133.21,133.1,112.0043]
[1767391535433,88.8,133.2,133.1,112.0043]
[1767391535629,0.05280019,133.17,133.14,0.04780866]
[1767391540242,89.08680759,133.27,133.17,105.1865]
[1767391540550,0.30680759,133.26,133.15,6.79149318]
[1767391540736,0.30680759,133.25,133.13,111.9765]
[1767391541042,0.30680759,133.25,133.18,0.05411851]
[1767391541741,0.30680759,133.24,133.18,0.05411851]
[1767391541943,0.04911402,133.22,133.14,6.7631]
[1767391542134,0.30680759,133.24,133.14,6.7631]
[1767391542439,88.76,133.23,133.15,111.9641]
[1767391542745,0.30680759,133.28,133.17,105.1864]
[1767391542936,0.05411851,133.24,133.16,111.9568]
[1767391543140,89.06680759,133.27,133.16,105.1944]
[1767391543437,89.06680759,133.27,133.19,6.7605]
[1767391543634,0.30680759,133.26,133.15,105.202]
[1767391544035,0.05639263,133.22,133.19,0.05027246]
[1767391544630,0.30680759,133.3,133.2,105.1612]
[1767391544837,88.76,133.29,133.2,105.1612]
[1767391545036,89.06680759,133.29,133.18,105.1746]
[1767391545533,0.04700142,133.25,133.17,105.1831]
[1767391545734,0.30680759,133.26,133.15,111.98899318]
[1767391546135,0.30680759,133.26,133.16,105.1923]
[1767391546636,0.05501643,133.22,133.2,0.05651397]
[1767391547142,0.00021545,133.22,133.2,0.05651397]
[1767391550241,0.00021545,133.22,133.14,127.9275]
[1767391550450,0.30680759,133.26,133.14,127.9275]
[1767391550745,0.30680759,133.25,133.13,193.9741]
[1767391550949,0.30680759,133.25,133.13,88.76]
[1767391551241,0.04874011,133.2,133.18,0.05054089]
[1767391551451,0.05496623,133.2,133.18,0.05054089]
[1767391552050,0.05496623,133.2,133.1,193.9796]
[1767391552254,0.30680759,133.23,133.1,193.9796]
[1767391552453,0.30680759,133.21,133.12,6.7642]
[1767391552747,89.02680759,133.21,133.12,6.7642]
[1767391552948,89.02680759,133.21,133.11,105.2297]
[1767391553150,0.05058305,133.18,133.15,0.05447159]
[1767391553639,0.05058305,133.18,133.08,105.2526]
[1767391553838,0.30680759,133.2,133.08,105.2526]
[1767391554052,0.30680759,133.2,133.09,105.249]
[1767391554244,0.30680759,133.19,133.08,105.2526]
[1767391554452,0.30680759,133.19,133.09,105.2496]
[1767391554651,0.05029684,133.15,133.13,0.05632152]
[1767391555156,0.05029684,133.15,133.1,6.7651]
[1767391555345,7.06830759,133.18,133.1,6.7651]
[1767391555541,88.72,133.17,133.1,6.7651]
[1767391555741,89.02680759,133.17,133.08,6.7662]
[1767391555946,0.30680759,133.16,133.08,6.7662]
[1767391556142,0.05745879,133.13,133.08,6.7662]
[1767391557254,0.05745879,133.13,133.09,6.81352174]
[1767391557559,0.05745879,133.13,133.09,0.04772174]
[1767391558449,0.36426638,133.13,133.03,194.0321]
[1767391558654,0.30680759,133.13,133.05,6.7678]
[1767391558850,88.74,133.15,133.02,105.3041]
[1767391558851,0.30680759,133.12,133.02,105.3041]
[1767391559051,0.30680759,133.12,133.01,105.3118]
[1767391559444,0.05467714,133.08,133.05,0.05190309]
[1767391560249,0.3212359,133.07,132.96,105.3487]
[1767391560746,7.0889359,133.06,132.97,6.7719]
[1767391561253,0.37293467,133.03,132.95,6.7728]
[1767391561460,88.76,133.02,132.95,6.7728]
[1767391561658,0.3212359,133.01,132.89,194.1654]
[1767391561856,0.3212359,133.01,132.93,6.774]
[1767391562057,0.3212359,133.01,132.9,105.3973]
[1767391562362,88.76,133.02,132.87,105.4192]
[1767391562363,0.05381336,132.97,132.87,105.4192]
[1767391562558,0.3212359,132.98,132.88,105.4152]
[1767391562955,0.3212359,132.98,132.87,6.777]
[1767391563158,0.3212359,132.97,132.87,6.777]
[1767391563352,105.3337,132.99,132.86,17.64440362]
[1767391563353,0.05737948,132.93,132.86,17.64440362]
[1767391563550,0.37861538,132.93,132.85,105.4382]
[1767391563856,0.3212359,132.93,132.83,105.4503]
[1767391564055,89.0812359,132.93,132.83,105.4503]
[1767391564358,0.0563297,132.89,132.87,0.05247639]
[1767391565956,0.3212359,132.97,132.87,105.47577639]
[1767391566152,88.8,132.96,132.87,105.4233]
[1767391566360,0.3212359,133.01,132.9,105.399]
[1767391566663,89.1212359,133.0,132.89,105.4053]
[1767391566962,0.0479462,132.96,132.93,0.05408446]
[1767391567262,89.1212359,133.0,132.93,0.05408446]
[1767391567263,0.3212359,133.0,132.93,0.05408446]
[1767391567451,89.1412359,133.0,132.93,0.05408446]
[1767391567759,89.1412359,133.0,132.93,6.82788446]
[1767391567958,0.3212359,133.04,132.94,105.3681]
[1767391568165,0.3212359,133.08,132.98,0.04746389]
[1767391568351,0.3212359,133.07,132.96,105.3521]
[1767391569155,0.05105102,133.03,133.0,0.05128501]
[1767391569358,0.05105102,133.03,132.91,112.20047632]
[1767391569557,0.3212359,133.04,132.94,6.7735]
[1767391569948,0.3212359,133.04,132.94,105.3678]
[1767391570154,88.82,133.03,132.94,105.3678]
[1767391570359,0.05525435,133.0,132.97,0.05703224]
[1767391571057,0.3212359,133.04,132.97,0.05703224]
[1767391571058,89.1612359,133.04,132.97,105.40053224]
[1767391571260,89.1612359,133.04,132.97,0.05703224]
[1767391572066,0.3212359,133.04,132.98,6.7714]
[1767391572262,0.05238715,133.02,133.0,0.05306728]
[1767391572662,0.05238715,133.02,132.95,6.7729]
[1767391572868,88.84,133.03,132.94,105.3659]
[1767391573464,0.3212359,133.04,132.94,112.1393]
[1767391573664,0.05275653,133.0,132.98,0.05765203]
[1767391573870,0.05275653,133.0,132.98,0.04752599]
[1767391573871,0.04911064,133.0,132.98,0.04752599]
[1767391576287,0.04911064,133.0,132.94,6.7734]
[1767391577162,0.04911064,133.0,132.96,0.0545671]
[1767391577777,0.04911064,133.0,132.92,6.7744]
[1767391577778,0.37034654,133.0,132.92,6.7744]
[1767391577963,0.3212359,133.0,132.92,6.7744]
[1767391578158,0.3212359,133.0,132.9,6.7754]
[1767391578776,0.05363815,132.96,132.9,6.7754]
[1767391579272,88.89363815,132.96,132.88,6.7764]
[1767391579472,0.3212359,132.95,132.88,6.7764]
[1767391579872,0.04819801,132.93,132.9,0.05348505]
[1767391581673,0.04819801,132.93,132.84,4.19480243]
[1767391581875,0.04819801,132.93,132.83,194.3111]
[1767391581876,0.3212359,132.94,132.83,105.4511]
[1767391582672,0.05080162,132.9,132.87,0.0557698]
[1767391583774,0.3212359,132.97,132.87,105.4764698]
[1767391583980,88.86,132.96,132.87,109.61290243]
[1767391584174,88.86,132.96,132.88,6.7764]
[1767391584472,4.19480243,133.0,132.88,105.4149]
[1767391584677,88.88,132.97,132.88,105.4149]
[1767391584971,0.05403652,132.95,132.91,0.05418676]
[1767391586171,0.05403652,132.95,132.85,105.436]
[1767391586172,0.37527242,132.95,132.85,105.436]
[1767391586375,89.2012359,132.95,132.86,105.4296]
[1767391586776,0.3212359,132.95,132.88,6.7765]
[1767391587279,0.04852617,132.93,132.86,6.7775]
[1767391587478,0.04852617,132.93,132.85,105.4395]
[1767391587667,0.05395044,132.9,132.85,105.4395]
[1767391587865,0.05395044,132.9,132.85,6.7781]
[1767391588268,0.05395044,132.9,132.86,0.04747678]
[1767391588475,0.05395044,132.9,132.86,6.82497678]
[1767391589175,0.05395044,132.9,132.87,6.7771]
[1767391589377,88.88,132.94,132.87,6.7771]
[1767391590475,0.05024391,132.92,132.89,0.04756158]
[1767391591779,0.05024391,132.92,132.85,6.7779]
[1767391591980,0.31624375,132.93,132.85,6.7779]
[1767391592969,0.05746117,132.9,132.88,0.05086117]
[1767391593276,0.05746117,132.9,132.82,257.0786013]
[1767391593577,0.31624375,132.93,132.82,257.0786013]
[1767391594170,0.04765946,132.89,132.82,257.0786013]
[1767391594781,0.04765946,132.89,132.84,6.7787]
[1767391595678,0.04765946,132.89,132.85,0.03364952]
[1767391597977,0.31624375,132.87,132.75,132.43110243]
[1767391598183,0.31624375,132.87,132.77,105.5032]
[1767391598384,0.31624375,132.85,132.78,6.7814]
[1767391598992,0.05457762,132.83,132.76,6.7824]
[1767391599280,0.05457762,132.83,132.74,88.92]
[1767391599582,0.04840478,132.8,132.71,194.4668]
[1767391599784,0.04749199,132.77,132.7,105.5577]
[1767391600178,0.04749199,132.77,132.69,105.5641]
[1767391600488,0.00221749,132.74,132.7,105.5567]
[1767391600673,0.00221749,132.74,132.69,105.5641]
[1767391600674,0.31624375,132.8,132.69,105.567]
[1767391600874,0.31624375,132.8,132.68,194.493]
[1767391601270,0.31624375,132.78,132.68,194.493]
[1767391601479,0.04849954,132.74,132.72,0.05333153]
[1767391603783,0.04849954,132.74,132.69,6.7862]
[1767391605479,0.31624375,132.71,132.63,6.7893]
[1767391605779,0.05119338,132.68,132.61,105.63]
[1767391605983,0.05119338,132.68,132.6,105.6319]
[1767391606184,88.96,132.7,132.6,105.6319]
[1767391606185,0.04952715,132.65,132.6,105.6319]
[1767391606480,0.31624375,132.7,132.62,6.7897]
[1767391606682,89.27624375,132.69,132.59,13.43676743]
[1767391606881,89.27624375,132.69,132.59,105.6438]
[1767391607080,0.31624375,132.68,132.6,6.7908]
[1767391607276,0.31624375,132.68,132.57,194.6394]
[1767391607481,0.31624375,132.68,132.61,0.05033927]
[1767391607684,0.05336786,132.64,132.61,0.05033927]
[1767391608185,88.98,132.69,132.61,105.67733927]
[1767391608385,88.98,132.7,132.61,105.627]
[1767391608684,88.98,132.7,132.64,6.7887]
[1767391609076,88.98,132.7,132.66,0.04741792]
[1767391609281,0.31624375,132.73,132.66,0.04741792]
[1767391609282,0.0478849,132.68,132.66,0.04741792]
[1767391609485,0.05611177,132.68,132.66,0.04741792]
[1767391612792,0.05611177,132.68,132.59,109.83810243]
[1767391612997,0.31624375,132.69,132.59,109.83810243]
[1767391613599,0.31624375,132.69,132.6,105.6381]
[1767391613899,89.33624375,132.72,132.63,4.25009791]
[1767391614100,89.33624375,132.72,132.63,4.19480243]
[1767391614794,0.05522511,132.69,132.66,0.0518871]
[1767391615197,0.31624375,132.72,132.66,0.0518871]
[1767391616101,0.0530266,132.7,132.66,0.0518871]
[1767391618402,0.36927035,132.7,132.62,6.7897]
[1767391618615,89.35624375,132.7,132.62,6.7897]
[1767391619706,0.05056394,132.67,132.65,0.05355384]
[1767391620100,0.05056394,132.67,132.6,6.7909]
[1767391620408,0.32554502,132.69,132.59,109.83820243]
[1767391620796,0.32554502,132.69,132.62,6.7899]
[1767391620995,0.32554502,132.69,132.61,105.6266]
[1767391621204,89.04,132.7,132.64,0.05377241]
[1767391621404,89.04,132.7,132.61,109.82140243]
[1767391622104,89.06,132.71,132.61,109.82140243]
[1767391622299,89.06,132.71,132.65,0.052977]
[1767391622300,0.05362225,132.67,132.65,0.052977]
[1767391622704,0.05362225,132.67,132.62,6.7896]
[1767391623511,0.05362225,132.67,132.61,109.82530243]
[1767391623714,0.05362225,132.67,132.63,0.04982257]
[1767391624815,0.05362225,132.67,132.64,6.7889]
[1767391625019,0.05362225,132.67,132.63,0.04982257]
[1767391625915,0.05362225,132.67,132.65,6.7883]
[1767391628620,0.05362225,132.67,132.63,6.83892257]
[1767391628921,0.05362225,132.67,132.63,0.04982257]
[1767391629315,0.05362225,132.67,132.65,6.7883]
[1767391631516,0.05362225,132.67,132.63,6.83882257]
[1767391631719,0.05362225,132.67,132.63,0.04982257]
[1767391632123,0.05362225,132.67,132.64,6.7889]
[1767391633820,109.71690243,132.75,132.64,6.7889]
[1767391633821,0.32554502,132.73,132.66,4.19480243]
[1767391634711,0.05631796,132.71,132.68,0.04836749]
[1767391634908,0.32554502,132.73,132.68,0.04836749]
[1767391635313,0.32554502,132.73,132.68,6.83516749]
[1767391635510,89.38554502,132.77,132.68,4.24316992]
[1767391635824,89.38554502,132.77,132.68,109.76720243]
[1767391636035,0.05114752,132.74,132.71,6.83454563]
[1767391636926,0.05114752,132.74,132.72,6.7848]
[1767391637126,89.06,132.77,132.71,0.04924563]
[1767391637525,89.06,132.77,132.72,6.7848]
[1767391638123,0.05538899,132.76,132.72,6.7848]
[1767391639026,0.32554502,132.8,132.73,6.784]
[1767391639332,0.32554502,132.8,132.72,109.73180243]
[1767391639628,0.32554502,132.8,132.75,6.7829]
[1767391640018,0.32554502,132.8,132.76,0.0553292]
[1767391640019,0.05768719,132.79,132.76,0.0553292]
[1767391640219,0.05768719,132.79,132.76,6.8380292]
[1767391641030,0.32554502,132.83,132.76,6.8380292]
[1767391641234,0.32554502,132.83,132.77,6.7822]
[1767391641929,0.05230516,132.81,132.79,0.05522414]
[1767391642228,0.32554502,132.86,132.79,0.05522414]
[1767391642832,0.32554502,132.86,132.79,6.83642414]
[1767391643228,0.05689213,132.84,132.8,6.7806]
[1767391643531,0.05689213,132.84,132.81,0.0484633]
[1767391644631,0.05689213,132.84,132.81,6.8285633]
[1767391645325,0.32554502,132.89,132.82,6.7796]
[1767391645529,0.32554502,132.89,132.8,105.4767]
[1767391646231,0.32554502,132.89,132.83,0.0499817]
[1767391646436,0.05259053,132.86,132.83,0.0499817]
[1767391646631,0.32554502,132.89,132.83,0.0499817]
[1767391646829,89.06,132.9,132.83,0.0499817]
[1767391647023,0.32554502,132.92,132.83,0.0499817]
[1767391647219,0.32554502,132.92,132.82,105.4597]
[1767391647426,0.32554502,132.92,132.79,105.4845]
[1767391647730,0.05064827,132.87,132.84,0.05358756]
[1767391647926,0.05448067,132.87,132.84,0.05688631]
[1767391649328,89.02,132.94,132.86,6.7775]
[1767391650333,0.04909842,132.91,132.89,0.04985272]
[1767391654142,0.04909842,132.91,132.84,6.7784]
[1767391654143,0.37351704,132.91,132.84,6.7784]
[1767391654730,0.37351704,132.91,132.85,6.7782]
[1767391654933,0.32441862,132.91,132.85,6.7782]
[1767391655128,0.32441862,132.91,132.87,0.05219329]
[1767391655436,0.05556889,132.89,132.87,0.05219329]
[1767391656340,0.05556889,132.89,132.83,6.7789]
[1767391656646,0.32441862,132.91,132.83,6.7789]
[1767391657445,0.04770353,132.88,132.86,0.04879164]
[1767391659244,0.37212215,132.88,132.81,6.7798]
[1767391659443,0.32441862,132.88,132.79,105.4828]
[1767391660443,0.05622769,132.85,132.82,6.83135255]
[1767391661158,0.05622769,132.85,132.82,0.05165255]
[1767391662049,0.38064631,132.85,132.78,6.7814]
[1767391662942,0.32441862,132.84,132.76,6.7825]
[1767391663248,0.32441862,132.84,132.74,194.5026]
[1767391664039,0.05678864,132.8,132.78,0.05322012]
[1767391664451,0.32441862,132.84,132.78,6.83492012]
[1767391665048,89.28441862,132.84,132.78,6.83492012]
[1767391665443,0.04802213,132.82,132.78,6.83492012]
[1767391667239,0.04802213,132.82,132.78,0.05322012]
[1767391667442,88.98,132.89,132.8,105.4766]
[1767391667952,89.30441862,132.89,132.8,105.4766]
[1767391668338,0.0545488,132.86,132.83,0.04996134]
[1767391674244,0.0545488,132.86,132.78,6.8299821]
[1767391674459,88.96,132.88,132.78,128.3225821]
[1767391674859,88.96,132.88,132.82,6.7797]
[1767391675454,0.05096259,132.86,132.84,0.04915183]
[1767391675652,0.05759697,132.86,132.84,0.0495127]
[1767391676043,88.96,132.91,132.84,0.0495127]
[1767391676044,89.28441862,132.91,132.84,6.8282127]
[1767391676958,0.05140434,132.89,132.84,6.8282127]
[1767391677160,0.05140434,132.89,132.85,6.7781]
[1767391681257,0.05140434,132.89,132.84,0.0495127]
[1767391682365,0.38063886,132.89,132.84,0.0495127]
[1767391689173,7.15693886,132.89,132.84,0.0495127]
[1767391690072,0.38063886,132.89,132.84,0.0495127]
[1767391690468,0.38063886,132.89,132.79,16.0]
[1767391690771,0.32923452,132.89,132.76,210.4684]
[1767391691069,6.7774,132.87,132.76,210.4684]
[1767391691262,6.7774,132.87,132.77,105.5032]
[1767391691572,0.04971647,132.83,132.81,0.05176851]
[1767391692474,6.7774,132.87,132.81,0.05176851]
[1767391693476,0.05243025,132.85,132.81,0.05176851]
[1767391698577,0.05243025,132.85,132.81,6.83176851]
[1767391699782,0.32923452,132.93,132.83,2.85843531]
[1767391699974,0.32923452,132.93,132.85,2.85843531]
[1767391700174,2.85843531,132.98,132.87,2.85843531]
[1767391700175,0.32923452,132.95,132.87,2.85843531]
[1767391700474,0.32923452,132.95,132.88,1.82731296]
[1767391700675,0.04794916,132.93,132.9,0.04749959]
[1767391701975,2.15654748,132.95,132.9,0.04749959]
[1767391702183,0.32923452,132.94,132.9,0.04749959]
[1767391702878,0.05671536,132.93,132.9,0.04749959]
[1767391704678,0.38594988,132.93,132.9,0.04749959]
[1767391705672,0.32923452,132.91,132.84,1.82731296]
[1767391705875,2.15654748,132.9,132.82,1.82731296]
[1767391706680,0.05110843,132.87,132.85,0.05460412]
[1767391711574,0.32923452,132.9,132.85,0.05460412]
[1767391711774,0.3183338,132.92,132.85,1.88191708]
[1767391712883,0.05230088,132.9,132.85,1.88191708]
[1767391715181,0.37063468,132.9,132.85,0.05460412]
[1767391719295,7.14633468,132.9,132.85,0.05460412]
[1767391720390,0.37063468,132.9,132.85,1.88191708]
[1767391721981,0.05230088,132.9,132.85,1.88191708]
[1767391722181,0.3183338,132.99,132.91,1.82731296]
[1767391722386,0.3183338,132.99,132.93,1.82731296]
[1767391722596,88.94,133.01,132.93,1.82731296]
[1767391722994,0.3183338,133.01,132.93,1.82731296]
[1767391723296,0.05030223,132.98,132.96,0.05429946]
[1767391724089,193.17011267,133.04,132.96,1.88161242]
[1767391724296,0.3183338,133.03,132.96,1.82731296]
[1767391725003,0.05600567,133.01,132.98,0.0508224]
[1767391725896,0.05600567,133.01,132.98,1.87813536]
[1767391728895,0.05600567,133.01,132.98,0.0508224]
[1767391732299,0.05600567,133.01,132.95,1.82731296]
[1767391732497,0.3183338,132.99,132.92,1.82731296]
[1767391732897,0.3183338,132.99,132.88,88.9]
[1767391732898,0.3183338,132.99,132.94,1.82731296]
[1767391733388,0.3183338,132.99,132.95,0.04997627]
[1767391734598,89.1983338,132.99,132.95,0.04997627]
[1767391734998,6.7722,132.97,132.9,1.82731296]
[1767391735194,7.0905338,132.97,132.89,1.82731296]
[1767391735395,0.3183338,132.97,132.87,6.7769]
[1767391735596,0.3183338,132.97,132.88,1.82731296]
[1767391735994,0.04797018,132.94,132.91,0.05365354]
[1767391743512,88.88,133.0,132.93,1.82731296]
[1767391743713,0.32596429,133.03,132.95,1.82731296]
[1767391743914,89.20596429,133.03,132.97,1.82731296]
[1767391744213,89.20596429,133.03,132.92,105.3808]
[1767391744406,89.20596429,133.03,132.96,0.05065889]
[1767391745008,1.82731296,133.02,132.96,0.05065889]
[1767391745207,0.05053863,133.01,132.96,0.05065889]
[1767391745610,0.37650292,133.01,132.96,0.05065889]
[1767391748615,88.88,133.0,132.96,0.05065889]
[1767391753819,88.88,132.99,132.96,0.05065889]
[1767391755824,0.32596429,132.97,132.89,1.82731296]
[1767391756724,0.32596429,132.97,132.92,0.05162543]
[1767391757324,0.05173517,132.96,132.92,0.05162543]
[1767391757522,88.86,132.95,132.92,0.05162543]
[1767391758928,0.05173517,132.96,132.92,6.82622543]
[1767391759126,40.8321,132.95,132.92,6.82622543]
[1767391759334,0.05173517,132.96,132.92,0.05162543]
[1767391759728,0.05173517,132.96,132.93,6.7741]
[1767391761030,0.05173517,132.96,132.92,0.05162543]
[1767391761031,89.20596429,133.01,132.92,2.90513934]
[1767391761220,89.20596429,133.01,132.92,2.85351391]
[1767391761417,95.97606429,133.01,132.92,2.85351391]
[1767391762029,95.97606429,133.01,132.95,0.05396135]
[1767391762826,7.09656429,133.0,132.95,0.05396135]
[1767391763125,0.32596429,132.99,132.95,0.05396135]
[1767391763529,0.37950164,132.98,132.95,0.05396135]
[1767391763733,0.37950164,132.98,132.87,2.85351391]
[1767391763734,0.32596429,132.96,132.87,2.85351391]
[1767391764637,0.05145337,132.93,132.9,0.05243926]
[1767391764848,0.05145337,132.93,132.9,6.82803926]
[1767391765335,0.05145337,132.93,132.9,0.05243926]
[1767391765538,0.37741766,132.93,132.85,108.29161391]
[1767391765738,0.32596429,132.93,132.85,108.29161391]
[1767391766535,0.05453516,132.9,132.88,0.05641898]
[1767391766722,0.05453516,132.9,132.88,6.83291898]
[1767391766921,0.0020959,132.9,132.88,6.83291898]
[1767391768032,0.0020959,132.9,132.89,6.7762]
[1767391770141,0.0020959,132.9,132.88,0.05641898]
[1767391776237,0.0020959,132.9,132.84,16.0]
[1767391776443,0.0020959,132.9,132.83,148.73963374]
[1767391777049,0.0020959,132.9,132.85,6.7782]
[1767391777242,0.0020959,132.9,132.86,0.05581477]
[1767391783147,0.0020959,132.9,132.87,6.7771]
[1767391783544,0.0020959,132.9,132.88,6.7767]
[1767391790355,0.0020959,132.9,132.89,6.7762]
[1767391790652,0.30790573,132.95,132.89,6.7762]
[1767391791151,0.30790573,132.95,132.87,6.7768]
[1767391791341,0.30790573,132.95,132.86,18.85351391]
[1767391791543,0.0526218,132.92,132.89,0.04903824]
[1767391804161,0.30992602,132.91,132.82,26.45750853]
[1767391804367,0.30992602,132.91,132.83,2.85351391]
[1767391805265,0.05692065,132.88,132.86,0.05586792]
[1767391813867,0.30992602,132.91,132.86,0.05586792]
[1767391814866,0.05623218,132.9,132.86,0.05586792]
[1767391816174,0.05623218,132.9,132.87,6.7772]
[1767391817275,0.30992602,132.95,132.87,2.85351391]
[1767391818175,0.30992602,132.95,132.89,6.776]
[1767391818372,0.0480469,132.92,132.9,0.04917974]
[1767391819275,0.0480469,132.92,132.87,6.7769]
[1767391819276,0.35797292,132.92,132.87,6.7769]
[1767391819669,0.35797292,132.92,132.84,108.29841391]
[1767391819871,0.30992602,132.92,132.84,108.29841391]
[1767391820062,0.30992602,132.92,132.88,6.7767]
[1767391820263,0.04846701,132.89,132.88,6.7767]
[1767391825780,0.30992602,132.92,132.88,6.7767]
[1767391826289,0.30992602,132.92,132.87,0.05547645]
[1767391826985,0.0511827,132.91,132.87,0.05547645]
[1767391829385,0.0511827,132.91,132.8,7.89138975]
[1767391829386,0.33824323,132.87,132.8,7.89138975]
[1767391829583,2.16617339,132.87,132.76,194.4287]
[1767391829787,0.33824323,132.87,132.82,1.82793016]
[1767391829989,0.33824323,132.87,132.84,1.82793016]
[1767391830381,0.39049011,132.87,132.84,1.87844217]
[1767391833796,0.39049011,132.87,132.84,0.05051201]